[Event "The Kvibergspelen 2023"]
[Site "Kviberg Park Hotel & Conference, Krutvagen 2, Gothenburg, Sweden"]
[Date "2023.09.15"]
[Round "4.20"]
[White "Nordenbaek, Jan"]
[Black "Stenman, Christoffer"]
[Result "0-1"]
[TimeControl "15 minutes + 5 seconds per move from move one (Round 1 - 4) / 90 minutes + 30 seconds per move from move one (Round 5 - 8)"]
[WhiteFideId "1401475"]
[BlackFideId "1713604"]
[WhiteElo "2163"]
[BlackElo "1896"]

1. e4 {[%clk 00:15:07]} {[%emt 00:00:02]} c5 {[%clk 00:15:09]} {[%emt
00:00:01]} 2. Nf3 {[%clk 00:15:06]} {[%emt 00:00:06]} Nc6 {[%clk 00:15:11]}
{[%emt 00:00:01]} 3. Nc3 {[%clk 00:14:43]} {[%emt 00:00:28]} g6 {[%clk
00:14:45]} {[%emt 00:00:32]} 4. d4 {[%clk 00:14:39]} {[%emt 00:00:10]} cxd4 5.
Nxd4 {[%clk 00:14:42]} Bg7 {[%clk 00:14:49]} {[%emt 00:00:03]} 6. Be3 {[%clk
00:14:46]} {[%emt 00:00:03]} d6 {[%clk 00:14:48]} {[%emt 00:00:05]} 7. Qd2
{[%clk 00:14:09]} {[%emt 00:00:42]} Nf6 {[%clk 00:14:35]} {[%emt 00:00:17]} 8.
f3 {[%clk 00:14:13]} O-O {[%clk 00:14:33]} {[%emt 00:00:09]} 9. g4 {[%clk
00:14:17]} {[%emt 00:00:02]} Nxd4 {[%clk 00:13:21]} {[%emt 00:01:17]} 10. Bxd4
{[%clk 00:14:19]} {[%emt 00:00:02]} Be6 {[%clk 00:13:23]} {[%emt 00:00:03]} 11.
O-O-O {[%clk 00:13:57]} {[%emt 00:00:26]} Nd7 {[%clk 00:12:34]} {[%emt
00:00:55]} 12. Bxg7 {[%clk 00:13:52]} {[%emt 00:00:11]} Kxg7 {[%clk 00:12:37]}
{[%emt 00:00:01]} 13. h4 {[%clk 00:13:55]} {[%emt 00:00:02]} h6 {[%clk
00:12:39]} {[%emt 00:00:02]} 14. Be2 {[%clk 00:12:32]} {[%emt 00:01:29]} Qa5
{[%clk 00:12:29]} {[%emt 00:00:15]} 15. a3 {[%clk 00:12:16]} {[%emt 00:00:22]}
Rfc8 {[%clk 00:11:41]} {[%emt 00:00:52]} 16. f4 {[%clk 00:12:16]} {[%emt
00:00:05]} f6 {[%clk 00:05:42]} {[%emt 00:06:04]} 17. g5 {[%clk 00:11:55]}
{[%emt 00:00:26]} hxg5 {[%emt 00:00:22]} 18. hxg5 fxg5 {[%clk 00:05:25]} 19. f5
{[%clk 00:11:26]} {[%emt 00:01:15]} Bf7 20. Qxg5 {[%clk 00:11:06]} Rh8 {[%clk
00:02:29]} {[%emt 00:01:54]} 21. Qxe7 {[%clk 00:10:43]} {[%emt 00:00:27]} Rxh1
{[%clk 00:00:30]} {[%emt 00:02:04]} 22. Rxh1 {[%clk 00:10:40]} {[%emt
00:00:07]} Ne5 {[%clk 00:00:26]} {[%emt 00:00:10]} 23. fxg6 {[%clk 00:10:21]}
{[%emt 00:00:24]} Nxg6 {[%clk 00:00:29]} {[%emt 00:00:04]} 24. Bc4 {[%clk
00:09:51]} {[%emt 00:00:33]} Nxe7 {[%clk 00:00:29]} {[%emt 00:00:06]} 0-1

[Event "The Kvibergspelen 2023"]
[Site "Kviberg Park Hotel & Conference, Krutvagen 2, Gothenburg, Sweden"]
[Date "2023.09.16"]
[Round "5.1"]
[White "Holm, Kristian Stuvik"]
[Black "Sivuk, Vitaly"]
[Result "1/2-1/2"]
[TimeControl "15 minutes + 5 seconds per move from move one (Round 1 - 4) / 90 minutes + 30 seconds per move from move one (Round 5 - 8)"]
[WhiteTitle "IM"]
[BlackTitle "GM"]
[WhiteFideId "1508083"]
[BlackFideId "14116502"]
[WhiteElo "2488"]
[BlackElo "2461"]

1. c4 {[%clk 01:28:03]} {[%emt 00:02:57]} Nf6 {[%clk 01:30:22]} {[%emt
00:00:38]} 2. Nc3 {[%clk 01:27:47]} {[%emt 00:00:46]} e5 {[%clk 01:30:10]}
{[%emt 00:00:42]} 3. Nf3 {[%clk 01:27:59]} {[%emt 00:00:18]} Nc6 {[%clk
01:29:53]} {[%emt 00:00:47]} 4. g3 {[%clk 01:28:01]} {[%emt 00:00:28]} d5
{[%clk 01:27:23]} {[%emt 00:02:59]} 5. cxd5 {[%clk 01:27:59]} {[%emt 00:00:33]}
Nxd5 {[%clk 01:27:47]} {[%emt 00:00:06]} 6. Bg2 {[%clk 01:28:24]} {[%emt
00:00:06]} Nf6 {[%clk 01:28:03]} {[%emt 00:00:13]} 7. b4 {[%clk 01:24:04]}
{[%emt 00:04:51]} a6 {[%clk 01:18:17]} {[%emt 00:10:14]} 8. a3 {[%clk
01:21:57]} {[%emt 00:02:38]} h6 {[%clk 01:18:02]} {[%emt 00:00:45]} 9. O-O
{[%clk 01:18:20]} {[%emt 00:04:08]} Bg4 {[%clk 01:10:29]} {[%emt 00:08:02]} 10.
Bb2 {[%clk 01:15:51]} {[%emt 00:02:59]} Qd7 {[%clk 01:09:32]} {[%emt 00:01:27]}
11. Rc1 {[%clk 01:11:38]} {[%emt 00:04:44]} Bh3 {[%clk 00:58:30]} {[%emt
00:11:32]} 12. Na4 {[%clk 01:01:11]} {[%emt 00:10:57]} Bxg2 {[%clk 00:54:55]}
{[%emt 00:04:04]} 13. Kxg2 {[%clk 01:01:24]} {[%emt 00:00:17]} Qd5 {[%clk
00:51:35]} {[%emt 00:03:50]} 14. d3 {[%clk 00:55:51]} {[%emt 00:06:04]} Qe6
{[%clk 00:37:42]} {[%emt 00:14:22]} 15. e4 {[%clk 00:36:45]} {[%emt 00:19:36]}
Rd8 {[%clk 00:36:34]} {[%emt 00:01:37]} 16. Qc2 {[%clk 00:34:46]} {[%emt
00:02:31]} Be7 {[%clk 00:35:22]} {[%emt 00:01:40]} 17. Rfe1 {[%clk 00:30:08]}
{[%emt 00:05:09]} O-O {[%clk 00:33:02]} {[%emt 00:02:50]} 18. Rcd1 {[%clk
00:25:31]} {[%emt 00:05:07]} Rd7 {[%clk 00:29:09]} {[%emt 00:04:22]} 19. Qc4
{[%clk 00:18:17]} {[%emt 00:07:45]} Qxc4 {[%clk 00:24:07]} {[%emt 00:05:32]} 20.
dxc4 {[%clk 00:18:38]} {[%emt 00:00:10]} Rxd1 {[%clk 00:24:26]} 21. Rxd1 {[%clk
00:19:04]} {[%emt 00:00:14]} Nxe4 {[%clk 00:24:47]} {[%emt 00:00:09]} 22. Nxe5
{[%clk 00:17:26]} {[%emt 00:02:08]} Nxe5 {[%clk 00:25:05]} {[%emt 00:00:11]} 23.
Bxe5 {[%clk 00:17:51]} {[%emt 00:00:06]} b5 {[%clk 00:24:21]} {[%emt 00:01:15]}
24. Nc3 {[%clk 00:09:22]} {[%emt 00:08:59]} Nxc3 {[%clk 00:20:59]} {[%emt
00:03:51]} 25. Bxc3 {[%clk 00:09:46]} {[%emt 00:00:06]} bxc4 {[%clk 00:17:23]}
{[%emt 00:04:06]} 26. Rd4 {[%clk 00:09:58]} {[%emt 00:00:18]} c5 {[%clk
00:17:02]} {[%emt 00:00:50]} 1/2-1/2

[Event "The Kvibergspelen 2023"]
[Site "Kviberg Park Hotel & Conference, Krutvagen 2, Gothenburg, Sweden"]
[Date "2023.09.16"]
[Round "5.2"]
[White "Seo, Jung Min"]
[Black "Golubka, Petro"]
[Result "1/2-1/2"]
[TimeControl "15 minutes + 5 seconds per move from move one (Round 1 - 4) / 90 minutes + 30 seconds per move from move one (Round 5 - 8)"]
[WhiteTitle "IM"]
[BlackTitle "GM"]
[WhiteFideId "1734687"]
[BlackFideId "14114224"]
[WhiteElo "2462"]
[BlackElo "2439"]

1. d4 {[%clk 01:30:58]} {[%emt 00:00:02]} d5 {[%clk 01:17:00]} {[%emt
00:14:01]} 2. c4 {[%clk 01:31:19]} {[%emt 00:00:08]} e6 {[%clk 01:17:27]}
{[%emt 00:00:02]} 3. Nf3 {[%clk 01:31:45]} {[%emt 00:00:04]} a6 {[%clk
01:17:54]} {[%emt 00:00:04]} 4. cxd5 {[%clk 01:32:03]} {[%emt 00:00:13]} exd5
{[%clk 01:18:22]} {[%emt 00:00:02]} 5. Nc3 {[%clk 01:32:19]} {[%emt 00:00:13]}
Nf6 {[%clk 01:18:47]} {[%emt 00:00:04]} 6. Bg5 {[%clk 01:32:03]} {[%emt
00:00:47]} Be6 {[%clk 01:19:04]} {[%emt 00:00:14]} 7. e3 {[%clk 01:32:00]}
{[%emt 00:00:33]} Nbd7 {[%clk 01:18:35]} {[%emt 00:00:58]} 8. Bd3 {[%clk
01:30:42]} {[%emt 00:01:48]} Bd6 {[%clk 01:18:26]} {[%emt 00:00:40]} 9. h3
{[%clk 01:19:41]} {[%emt 00:11:30]} c6 {[%clk 01:14:42]} {[%emt 00:04:14]} 10.
Bf4 {[%clk 01:20:05]} {[%emt 00:00:05]} Qb8 {[%clk 01:15:08]} {[%emt 00:00:04]}
11. Bxd6 {[%clk 01:17:48]} {[%emt 00:02:49]} Qxd6 {[%clk 01:11:03]} {[%emt
00:04:33]} 12. Qc2 {[%clk 01:17:46]} {[%emt 00:00:32]} g6 {[%clk 01:11:12]}
{[%emt 00:00:22]} 13. O-O {[%clk 01:06:11]} {[%emt 00:12:04]} O-O {[%clk
01:03:51]} {[%emt 00:07:51]} 14. Rac1 {[%clk 00:57:38]} {[%emt 00:09:03]} Rfc8
{[%clk 01:02:30]} {[%emt 00:01:52]} 15. Rfd1 {[%clk 00:57:24]} {[%emt
00:00:42]} Qe7 {[%clk 01:02:39]} {[%emt 00:00:23]} 16. a3 {[%clk 00:55:21]}
{[%emt 00:02:33]} Ne8 {[%clk 01:02:03]} {[%emt 00:01:07]} 17. Na4 {[%clk
00:54:37]} {[%emt 00:01:13]} Nef6 {[%clk 01:01:12]} {[%emt 00:01:21]} 18. b4
{[%clk 00:42:57]} {[%emt 00:12:10]} a5 {[%clk 00:59:14]} {[%emt 00:02:29]} 19.
Nc5 {[%clk 00:42:23]} {[%emt 00:01:04]} axb4 {[%clk 00:58:32]} {[%emt
00:01:11]} 20. axb4 {[%clk 00:42:32]} {[%emt 00:00:22]} b6 {[%clk 00:58:15]}
{[%emt 00:00:47]} 21. Nxd7 {[%clk 00:38:07]} {[%emt 00:04:54]} Nxd7 {[%clk
00:57:47]} {[%emt 00:00:57]} 22. Qd2 {[%clk 00:35:42]} {[%emt 00:02:55]} c5
{[%clk 00:56:10]} {[%emt 00:02:09]} 23. dxc5 {[%clk 00:35:58]} {[%emt
00:00:13]} bxc5 {[%clk 00:56:39]} {[%emt 00:00:01]} 24. bxc5 {[%clk 00:36:19]}
{[%emt 00:00:08]} Nxc5 {[%clk 00:56:43]} {[%emt 00:00:27]} 25. Nd4 {[%clk
00:34:06]} {[%emt 00:02:44]} Qg5 {[%clk 00:54:26]} {[%emt 00:02:44]} 26. Nxe6
{[%clk 00:26:21]} {[%emt 00:08:17]} Nxe6 {[%clk 00:52:30]} {[%emt 00:02:26]} 27.
Rxc8+ {[%clk 00:25:21]} {[%emt 00:01:30]} Rxc8 {[%clk 00:52:56]} {[%emt
00:00:03]} 28. Bf1 {[%clk 00:24:53]} {[%emt 00:00:59]} Rc5 {[%clk 00:50:01]}
{[%emt 00:03:25]} 29. g3 {[%clk 00:21:53]} {[%emt 00:03:29]} d4 {[%clk
00:48:04]} {[%emt 00:02:28]} 30. exd4 {[%clk 00:22:09]} {[%emt 00:00:13]} Qxd2
{[%clk 00:48:27]} {[%emt 00:00:08]} 31. Rxd2 {[%clk 00:22:36]} {[%emt
00:00:03]} Rd5 {[%clk 00:48:52]} {[%emt 00:00:04]} 32. Kg2 {[%clk 00:22:24]}
{[%emt 00:00:43]} Rxd4 {[%clk 00:49:18]} {[%emt 00:00:04]} 33. Rxd4 {[%clk
00:22:50]} {[%emt 00:00:04]} Nxd4 {[%clk 00:49:45]} {[%emt 00:00:04]} 34. h4
{[%clk 00:23:15]} {[%emt 00:00:05]} h6 {[%clk 00:50:10]} {[%emt 00:00:04]} 35.
Bd3 {[%clk 00:23:39]} {[%emt 00:00:04]} f5 {[%clk 00:50:29]} {[%emt 00:00:12]}
36. f4 {[%clk 00:24:03]} {[%emt 00:00:06]} Kg7 {[%clk 00:50:43]} {[%emt
00:00:17]} 37. Kf2 {[%clk 00:24:30]} {[%emt 00:00:03]} Kf6 {[%clk 00:50:52]}
{[%emt 00:00:21]} 38. Ke3 {[%clk 00:24:56]} {[%emt 00:00:04]} Ne6 {[%clk
00:51:11]} {[%emt 00:00:11]} 39. Be2 {[%clk 00:25:23]} {[%emt 00:00:03]} g5
{[%clk 00:51:33]} {[%emt 00:00:08]} 40. hxg5+ {[%clk 00:25:38]} {[%emt
00:00:15]} hxg5 {[%clk 00:52:01]} {[%emt 00:00:02]} 41. fxg5+ {[%clk 00:26:00]}
{[%emt 00:00:08]} Kxg5 {[%clk 00:52:28]} {[%emt 00:00:03]} 42. Bc4 {[%clk
00:26:22]} {[%emt 00:00:09]} f4+ {[%clk 00:52:55]} {[%emt 00:00:03]} 43. gxf4+
{[%clk 00:26:48]} {[%emt 00:00:03]} Nxf4 {[%clk 00:53:22]} {[%emt 00:00:03]} 44.
Kd2 {[%clk 00:27:13]} {[%emt 00:00:05]} Nd3 {[%clk 00:53:49]} {[%emt 00:00:03]}
45. Be6 {[%clk 00:27:37]} {[%emt 00:00:05]} Kf6 {[%clk 00:54:16]} {[%emt
00:00:04]} 46. Bf5 {[%clk 00:28:02]} {[%emt 00:00:04]} Kxf5 {[%clk 00:54:43]}
{[%emt 00:00:04]} 47. Kxd3 {[%clk 00:28:28]} {[%emt 00:00:03]} Ke5 {[%emt
00:00:05]} 48. Ke4+ {[%clk 00:28:28]} 1/2-1/2

[Event "The Kvibergspelen 2023"]
[Site "Kviberg Park Hotel & Conference, Krutvagen 2, Gothenburg, Sweden"]
[Date "2023.09.16"]
[Round "5.3"]
[White "Kistrup, Nicolai"]
[Black "Akesson, Ralf"]
[Result "1/2-1/2"]
[TimeControl "15 minutes + 5 seconds per move from move one (Round 1 - 4) / 90 minutes + 30 seconds per move from move one (Round 5 - 8)"]
[WhiteTitle "FM"]
[BlackTitle "GM"]
[WhiteFideId "1444816"]
[BlackFideId "1700120"]
[WhiteElo "2359"]
[BlackElo "2410"]

1. d4 {[%clk 01:27:32]} {[%emt 00:03:28]} e6 {[%clk 01:24:29]} {[%emt
00:06:31]} 2. e4 {[%clk 01:22:48]} {[%emt 00:05:14]} d5 {[%clk 01:24:41]}
{[%emt 00:00:18]} 3. Nc3 {[%clk 01:23:13]} {[%emt 00:00:05]} dxe4 {[%clk
01:24:28]} {[%emt 00:00:43]} 4. Nxe4 {[%clk 01:23:36]} {[%emt 00:00:08]} Bd7
{[%clk 01:24:50]} {[%emt 00:00:07]} 5. Nf3 {[%clk 01:16:29]} {[%emt 00:07:37]}
Bc6 {[%clk 01:25:06]} {[%emt 00:00:15]} 6. Bd3 {[%clk 01:15:49]} {[%emt
00:01:09]} Nd7 {[%clk 01:24:45]} {[%emt 00:00:51]} 7. O-O {[%clk 01:11:32]}
{[%emt 00:04:46]} Ngf6 {[%clk 01:23:55]} {[%emt 00:01:21]} 8. Ned2 {[%clk
01:08:22]} {[%emt 00:03:40]} Be7 {[%clk 01:17:31]} {[%emt 00:06:54]} 9. c3
{[%clk 01:05:25]} {[%emt 00:03:27]} O-O {[%clk 01:17:16]} {[%emt 00:00:45]} 10.
Qe2 {[%clk 01:04:42]} {[%emt 00:01:13]} Bxf3 {[%clk 01:11:25]} {[%emt
00:06:21]} 11. Nxf3 {[%clk 01:03:13]} {[%emt 00:01:59]} c5 {[%clk 01:10:56]}
{[%emt 00:01:00]} 12. Bf4 {[%clk 00:58:35]} {[%emt 00:05:08]} Nh5 {[%clk
01:02:10]} {[%emt 00:09:16]} 13. Be3 {[%clk 00:56:21]} {[%emt 00:02:44]} g6
{[%clk 00:55:54]} {[%emt 00:06:45]} 14. Rad1 {[%clk 00:49:01]} {[%emt
00:07:51]} Qc7 {[%clk 00:54:47]} {[%emt 00:01:36]} 15. Bc2 {[%clk 00:46:39]}
{[%emt 00:02:52]} Rad8 {[%clk 00:52:33]} {[%emt 00:02:44]} 16. dxc5 {[%clk
00:33:03]} {[%emt 00:14:07]} Bxc5 {[%clk 00:48:38]} {[%emt 00:04:24]} 17. Bg5
{[%clk 00:30:09]} {[%emt 00:03:23]} Ndf6 {[%clk 00:45:52]} {[%emt 00:03:16]} 18.
Qe5 {[%clk 00:25:35]} {[%emt 00:05:04]} Qxe5 {[%clk 00:30:58]} {[%emt
00:15:25]} 19. Nxe5 {[%clk 00:25:56]} {[%emt 00:00:09]} Bd6 {[%clk 00:29:45]}
{[%emt 00:01:43]} 20. f4 {[%clk 00:15:19]} {[%emt 00:11:07]} Bc5+ {[%clk
00:21:55]} {[%emt 00:08:20]} 21. Kh1 {[%clk 00:13:14]} {[%emt 00:02:35]} Rxd1
{[%clk 00:21:49]} {[%emt 00:00:36]} 22. Rxd1 {[%clk 00:12:58]} {[%emt
00:00:46]} Nd5 {[%clk 00:21:01]} {[%emt 00:01:17]} 23. Nd7 {[%clk 00:07:29]}
{[%emt 00:06:00]} Rc8 {[%clk 00:21:20]} {[%emt 00:00:11]} 24. Be4 {[%clk
00:06:07]} {[%emt 00:01:52]} Rc7 {[%clk 00:17:10]} {[%emt 00:04:40]} 25. Nxc5
{[%clk 00:02:23]} {[%emt 00:04:15]} Rxc5 {[%clk 00:17:35]} {[%emt 00:00:04]} 26.
g3 {[%clk 00:01:22]} {[%emt 00:01:31]} f6 {[%clk 00:17:06]} {[%emt 00:00:58]}
27. Bh6 {[%clk 00:01:24]} {[%emt 00:00:29]} Kf7 {[%clk 00:16:16]} {[%emt
00:01:20]} 28. Rd4 {[%clk 00:01:28]} {[%emt 00:00:26]} b5 {[%clk 00:15:41]}
{[%emt 00:01:05]} 29. Kg2 {[%clk 00:00:43]} {[%emt 00:01:15]} f5 {[%clk
00:12:44]} {[%emt 00:03:27]} 30. Bf3 {[%clk 00:00:49]} {[%emt 00:00:23]} Nhf6
{[%clk 00:13:08]} {[%emt 00:00:06]} 31. Bg5 {[%clk 00:00:43]} {[%emt 00:00:37]}
Ne8 {[%clk 00:11:33]} {[%emt 00:02:05]} 32. b4 {[%clk 00:00:38]} {[%emt
00:00:36]} Rxc3 {[%clk 00:11:31]} {[%emt 00:00:31]} 33. Bxd5 {[%clk 00:01:01]}
{[%emt 00:00:07]} exd5 {[%clk 00:11:54]} {[%emt 00:00:07]} 34. Rxd5 {[%clk
00:01:28]} {[%emt 00:00:03]} Nf6 {[%clk 00:11:42]} {[%emt 00:00:42]} 35. Rxb5
{[%clk 00:01:02]} {[%emt 00:00:56]} Rc2+ {[%clk 00:11:46]} {[%emt 00:00:25]} 36.
Kg1 {[%clk 00:00:47]} {[%emt 00:00:46]} Rxa2 {[%clk 00:07:38]} {[%emt
00:04:38]} 37. Rb7+ {[%clk 00:01:02]} {[%emt 00:00:15]} Ke6 {[%clk 00:08:02]}
{[%emt 00:00:06]} 38. Bxf6 {[%clk 00:01:20]} {[%emt 00:00:12]} Kxf6 {[%clk
00:08:25]} {[%emt 00:00:06]} 39. Rxh7 {[%clk 00:01:41]} {[%emt 00:00:09]} a5
{[%clk 00:07:52]} {[%emt 00:01:04]} 40. bxa5 {[%clk 00:01:23]} {[%emt
00:00:48]} Rxa5 {[%clk 00:08:15]} {[%emt 00:00:07]} 41. Rb7 {[%clk 00:01:12]}
{[%emt 00:00:41]} Ra1+ {[%clk 00:07:41]} {[%emt 00:01:04]} 42. Kg2 {[%clk
00:01:36]} {[%emt 00:00:06]} Ra2+ {[%clk 00:08:06]} {[%emt 00:00:05]} 43. Kh3
{[%clk 00:01:54]} {[%emt 00:00:12]} Rc2 {[%clk 00:08:29]} {[%emt 00:00:07]} 44.
Rb1 {[%clk 00:01:42]} {[%emt 00:00:41]} Kg7 {[%clk 00:08:30]} {[%emt 00:00:29]}
45. Rg1 {[%clk 00:01:58]} {[%emt 00:00:14]} g5 {[%clk 00:05:28]} {[%emt
00:03:32]} 46. fxg5 {[%clk 00:01:36]} {[%emt 00:00:53]} Kg6 {[%clk 00:05:51]}
{[%emt 00:00:07]} 47. Rg2 {[%clk 00:01:37]} {[%emt 00:00:29]} Rc3 {[%clk
00:05:44]} {[%emt 00:00:38]} 48. Ra2 {[%clk 00:01:30]} {[%emt 00:00:36]} Kxg5
{[%clk 00:05:23]} {[%emt 00:00:51]} 49. Kg2 {[%clk 00:01:47]} {[%emt 00:00:13]}
Rc5 {[%clk 00:05:24]} {[%emt 00:00:30]} 50. h4+ {[%clk 00:01:25]} {[%emt
00:00:51]} Kf6 {[%clk 00:04:55]} {[%emt 00:00:59]} 51. Ra6+ {[%clk 00:01:21]}
{[%emt 00:00:34]} Kg7 {[%clk 00:04:09]} {[%emt 00:01:16]} 52. Kf3 {[%clk
00:01:18]} {[%emt 00:00:34]} Rc4 {[%clk 00:04:33]} {[%emt 00:00:05]} 53. Rd6
{[%clk 00:01:35]} {[%emt 00:00:12]} Ra4 {[%clk 00:04:57]} {[%emt 00:00:07]} 54.
Ke3 {[%clk 00:00:53]} {[%emt 00:01:13]} Rg4 {[%clk 00:05:14]} {[%emt 00:00:11]}
55. Kf3 {[%clk 00:01:19]} {[%emt 00:00:05]} Kf7 {[%clk 00:04:59]} {[%emt
00:00:45]} 56. h5 {[%clk 00:01:12]} {[%emt 00:00:37]} Kg7 {[%clk 00:04:53]}
{[%emt 00:00:35]} 57. h6+ {[%clk 00:00:34]} {[%emt 00:01:10]} Kh7 {[%clk
00:05:16]} {[%emt 00:00:06]} 58. Rf6 {[%clk 00:00:52]} {[%emt 00:00:12]} Ra4
{[%clk 00:05:40]} {[%emt 00:00:06]} 59. Rxf5 {[%clk 00:00:36]} {[%emt
00:00:46]} 1/2-1/2

[Event "The Kvibergspelen 2023"]
[Site "Kviberg Park Hotel & Conference, Krutvagen 2, Gothenburg, Sweden"]
[Date "2023.09.16"]
[Round "5.4"]
[White "Ramsdal, Jens Albert"]
[Black "Thorn, Eric"]
[Result "1-0"]
[TimeControl "15 minutes + 5 seconds per move from move one (Round 1 - 4) / 90 minutes + 30 seconds per move from move one (Round 5 - 8)"]
[WhiteTitle "FM"]
[BlackTitle "FM"]
[WhiteFideId "1429221"]
[BlackFideId "1710729"]
[WhiteElo "2391"]
[BlackElo "2390"]

1. d4 {[%clk 01:24:19]} {[%emt 00:06:40]} d5 {[%clk 01:30:34]} {[%emt
00:00:28]} 2. c4 {[%clk 01:24:44]} {[%emt 00:00:04]} dxc4 {[%clk 01:30:43]}
{[%emt 00:00:20]} 3. e3 {[%clk 01:25:06]} {[%emt 00:00:08]} b5 {[%clk
01:26:51]} {[%emt 00:04:22]} 4. a4 {[%clk 01:21:13]} {[%emt 00:04:24]} b4
{[%clk 01:27:15]} {[%emt 00:00:05]} 5. Bxc4 {[%clk 01:16:21]} {[%emt 00:05:22]}
Nf6 {[%clk 01:27:34]} {[%emt 00:00:11]} 6. Nf3 {[%clk 01:16:24]} {[%emt
00:00:27]} e6 {[%clk 01:27:52]} {[%emt 00:00:12]} 7. O-O {[%clk 01:16:11]}
{[%emt 00:00:44]} Be7 {[%clk 01:27:58]} {[%emt 00:00:22]} 8. Ne5 {[%clk
01:09:55]} {[%emt 00:06:47]} Bb7 {[%clk 01:17:38]} {[%emt 00:10:50]} 9. a5
{[%clk 01:10:09]} {[%emt 00:00:17]} O-O {[%clk 01:09:39]} {[%emt 00:08:29]} 10.
Nd2 {[%clk 00:55:39]} {[%emt 00:14:59]} a6 {[%clk 01:07:58]} {[%emt 00:02:05]}
11. Ndf3 {[%clk 00:53:09]} {[%emt 00:03:05]} c5 {[%clk 00:56:48]} {[%emt
00:11:42]} 12. Qb3 {[%clk 00:49:24]} {[%emt 00:04:14]} Bd5 {[%clk 00:51:07]}
{[%emt 00:06:11]} 13. Rd1 {[%clk 00:47:24]} {[%emt 00:02:30]} Qc7 {[%clk
00:45:44]} {[%emt 00:05:52]} 14. Bxd5 {[%clk 00:42:33]} {[%emt 00:05:21]} Nxd5
{[%clk 00:44:01]} {[%emt 00:02:13]} 15. e4 {[%clk 00:41:48]} {[%emt 00:01:16]}
Nf6 {[%clk 00:44:20]} {[%emt 00:00:11]} 16. Bf4 {[%clk 00:39:55]} {[%emt
00:02:23]} Nh5 {[%clk 00:39:30]} {[%emt 00:05:21]} 17. Be3 {[%clk 00:39:48]}
{[%emt 00:00:37]} cxd4 {[%clk 00:37:41]} {[%emt 00:02:18]} 18. Bxd4 {[%clk
00:37:44]} {[%emt 00:02:34]} Qb7 {[%clk 00:33:50]} {[%emt 00:04:22]} 19. Bb6
{[%clk 00:32:46]} {[%emt 00:05:28]} Qxe4 {[%clk 00:28:27]} {[%emt 00:05:52]} 20.
Rd4 {[%clk 00:33:04]} {[%emt 00:00:11]} Qe2 {[%clk 00:24:24]} {[%emt 00:04:33]}
21. Rc4 {[%clk 00:27:02]} {[%emt 00:06:33]} Nd7 {[%clk 00:15:40]} {[%emt
00:09:13]} 22. Nxd7 {[%clk 00:25:35]} {[%emt 00:01:58]} Rfc8 {[%clk 00:16:03]}
{[%emt 00:00:07]} 23. Rac1 {[%clk 00:24:57]} {[%emt 00:01:08]} Rxc4 {[%clk
00:13:33]} {[%emt 00:03:00]} 24. Qxc4 {[%clk 00:23:45]} {[%emt 00:01:42]} Qxb2
{[%clk 00:12:47]} {[%emt 00:01:16]} 25. Bd4 {[%clk 00:23:32]} {[%emt 00:00:43]}
Qa3 {[%clk 00:12:36]} {[%emt 00:00:40]} 26. Ra1 {[%clk 00:23:44]} {[%emt
00:00:18]} 1-0